fUSD/lending_fUSD_20250228
["ID","MTS","AMOUNT","RATE_DAILY","PERIOD"]
[354805786,1740708650792,-230.00594062,0.00057533,120]
[354805788,1740708650802,-500.0,0.00057533,120]
[354805790,1740708650814,-1040.93,0.00057533,120]
[354805792,1740708650826,-500.0,0.00057533,120]
[354805794,1740708650835,-500.0,0.00057533,120]
[354805796,1740708650845,-500.0,0.00057533,120]
[354805798,1740708650855,-500.0,0.00057533,120]
[354805800,1740708650864,-500.0,0.00057534,120]
[354805802,1740708650874,-447.99,0.00057534,120]
[354805804,1740708650887,-500.0,0.00057534,120]
[354805806,1740708650898,-1446.15,0.00057534,120]
[354805808,1740708650909,-663.2,0.00057534,120]
[354805810,1740708650919,-500.0,0.00057534,120]
[354805812,1740708650930,-500.0,0.00057534,120]
[354805814,1740708650940,-500.0,0.00057534,120]
[354805816,1740708650950,-510.54,0.00057534,120]
[354805818,1740708650962,-500.0,0.00057534,120]
[354805820,1740708650972,-500.0,0.00057534,120]
[354805822,1740708650981,-500.0,0.00057534,120]
[354805824,1740708650991,-579.62,0.00057534,120]
[354805826,1740708651002,-716.47,0.00057534,120]
[354805828,1740708651011,-500.0,0.00057534,120]
[354805830,1740708651020,-1980.51,0.00057534,120]
[354805832,1740708651030,-282.56186734,0.00057534,120]
[354805834,1740708651039,-1061.0,0.00057805,120]
[354805836,1740708651050,-500.0,0.00057807,120]
[354805838,1740708651059,-500.0,0.00057807,120]
[354805840,1740708651070,-454.11496054,0.00057807,120]
[354805843,1740708651080,-566.28,0.00057807,120]
[354805845,1740708651089,-500.0,0.00057807,120]
[354805847,1740708651099,-500.0,0.00057807,120]
[354805849,1740708651109,-1040.93,0.00057807,120]
[354805850,1740708651119,-156.31987169,0.00057807,120]
[354805853,1740708651128,-500.0,0.00057807,120]
[354805855,1740708651138,-500.0,0.00057807,120]
[354805857,1740708651148,-500.0,0.00057807,120]
[354805859,1740708651157,-500.0,0.00057808,120]
[354805860,1740708651167,-1446.15,0.00057808,120]
[354805862,1740708651176,-663.2,0.00057808,120]
[354805864,1740708651186,-500.0,0.00057808,120]
[354805866,1740708651196,-500.0,0.00057808,120]
[354805869,1740708651207,-211.28471706,0.00057808,120]
[354805871,1740708651216,-510.54,0.00057808,120]
[354805873,1740708651226,-500.0,0.00057808,120]
[354805875,1740708651236,-500.0,0.00057808,120]
[354805877,1740708651246,-500.0,0.00057808,120]
[354805879,1740708651257,-579.62,0.00057808,120]
[354805881,1740708651267,-716.47,0.00057808,120]
[354805883,1740708651276,-500.0,0.00057808,120]
[354805885,1740708651285,-1980.51,0.00057808,120]
[354805887,1740708651295,-937.10484352,0.00057826,15]
[354805889,1740708651305,-1654.30962248,0.00058005,120]
[354805891,1740708651315,-500.0,0.00058081,120]
[354805893,1740708651324,-360.27572651,0.00058081,120]
[354805895,1740708651334,-566.28,0.00058081,120]
[354805897,1740708651343,-500.0,0.00058081,120]
[354805899,1740708651353,-500.0,0.00058081,120]
[354805901,1740708651362,-1040.93,0.00058081,120]
[354805903,1740708651372,-500.0,0.00058081,120]
[354805905,1740708651382,-500.0,0.00058081,120]
[354805907,1740708651392,-500.0,0.00058081,120]
[354805909,1740708651402,-612.71828864,0.00058082,120]
[354805911,1740708651412,-1446.15,0.00058082,120]
[354805913,1740708651422,-663.2,0.00058082,120]
[354805915,1740708651431,-500.0,0.00058082,120]
[354805917,1740708651442,-500.0,0.00058082,120]
[354805919,1740708651451,-510.54,0.00058082,120]
[354805922,1740708651462,-500.0,0.00058082,120]
[354805924,1740708651472,-500.0,0.00058082,120]
[354805926,1740708651482,-500.0,0.00058082,120]
[354805928,1740708651492,-579.62,0.00058082,120]
[354805930,1740708651505,-716.47,0.00058082,120]
[354805932,1740708651516,-500.0,0.00058082,120]
[354805935,1740708651528,-1980.51,0.00058082,120]
[354805937,1740708651540,-483.0,0.00058094,30]
[354805939,1740708651551,-500.0,0.00058355,120]
[354805941,1740708651562,-566.28,0.00058355,120]
[354805943,1740708651573,-327.73103866,0.00058355,120]
[354805946,1740708651583,-500.0,0.00058355,120]
[354805948,1740708651593,-1040.93,0.00058355,120]
[354805950,1740708651602,-500.0,0.00058355,120]
[354805952,1740708651613,-500.0,0.00058355,120]
[354805954,1740708651624,-500.0,0.00058355,120]
[354805956,1740708651635,-1446.15,0.00058356,120]
[354805957,1740708651646,-663.2,0.00058356,120]
[354805958,1740708651656,-500.0,0.00058356,120]
[354805959,1740708651667,-529.61912846,0.00058356,120]
[354805960,1740708651677,-510.54,0.00058356,120]
[354805961,1740708651687,-500.0,0.00058356,120]
[354805962,1740708651698,-500.0,0.00058356,120]
[354805963,1740708651709,-500.0,0.00058356,120]
[354805964,1740708651720,-579.62,0.00058356,120]
[354805966,1740708651731,-716.47,0.00058356,120]
[354805968,1740708651741,-500.0,0.00058356,120]
[354805970,1740708651753,-1980.51,0.00058356,120]
[354805972,1740708651764,-500.0,0.00058394,120]
[354805975,1740708651775,-937.10484352,0.00058541,15]
[354805977,1740708651785,-1654.30962248,0.00058584,120]
[354805979,1740708651796,-502.46043713,0.00058623,15]
[354805981,1740708651806,-545.96880199,0.00058629,120]
[354805983,1740708651816,-566.28,0.00058629,120]
[354805985,1740708651826,-500.0,0.00058629,120]
[354805987,1740708651837,-1040.93,0.00058629,120]
[354805989,1740708651848,-500.0,0.00058629,120]
[354805992,1740708651859,-500.0,0.00058629,120]
[354805994,1740708651870,-500.0,0.00058629,120]
[354805996,1740708651882,-1446.15,0.0005863,120]
[354805998,1740708651896,-663.2,0.0005863,120]
[354806000,1740708651907,-500.0,0.0005863,120]
[354806002,1740708651918,-510.54,0.0005863,120]
[354806004,1740708651930,-500.0,0.0005863,120]
[354806007,1740708651941,-500.0,0.0005863,120]
[354806009,1740708651952,-500.0,0.0005863,120]
[354806011,1740708651963,-579.62,0.0005863,120]
[354806013,1740708651975,-716.47,0.0005863,120]
[354806015,1740708651985,-500.0,0.0005863,120]
[354806018,1740708651996,-1980.51,0.0005863,120]
[354806020,1740708652006,-978.76,0.00058668,120]
[354806022,1740708652016,-483.0,0.00058687,30]
[354806024,1740708652028,-168.4359533,0.000589,37]
[354806026,1740708652038,-566.28,0.00058903,120]
[354806028,1740708652049,-500.0,0.00058903,120]
[354806030,1740708652060,-1040.93,0.00058903,120]
[354806033,1740708652070,-500.0,0.00058903,120]
[354806035,1740708652081,-618.69583671,0.00058903,120]
[354806037,1740708652091,-500.0,0.00058903,120]
[354806039,1740708652103,-1446.15,0.00058904,120]
[354806041,1740708652115,-663.2,0.00058904,120]
[354806043,1740708652124,-647.90183914,0.00058904,120]
[354806045,1740708652136,-510.54,0.00058904,120]
[354806048,1740708652147,-500.0,0.00058904,120]
[354806050,1740708652158,-500.0,0.00058904,120]
[354806052,1740708652170,-500.0,0.00058904,120]
[354806054,1740708652181,-579.62,0.00058904,120]
[354806056,1740708652193,-716.47,0.00058904,120]
[354806059,1740708652203,-612.87837577,0.00058904,120]
[354806061,1740708652213,-1980.51,0.00058904,120]
[354806063,1740708652224,-206.0,0.0005911,30]
[354806065,1740708652234,-1654.30962248,0.00059163,120]
[354806067,1740708652245,-566.28,0.00059176,120]
[354806069,1740708652255,-500.0,0.00059176,120]
[354806071,1740708652264,-1040.93,0.00059176,120]
[354806073,1740708652274,-433.37583984,0.00059176,120]
[354806075,1740708652284,-500.0,0.00059176,120]
[354806077,1740708652294,-1446.15,0.00059178,120]
[354806079,1740708652304,-663.2,0.00059178,120]
[354806081,1740708652314,-510.54,0.00059178,120]
[354806083,1740708652325,-500.0,0.00059178,120]
[354806086,1740708652337,-531.82,0.00059178,120]
[354806088,1740708652349,-500.0,0.00059178,120]
[354806090,1740708652359,-579.62,0.00059178,120]
[354806092,1740708652368,-716.47,0.00059178,120]
[354806094,1740708652378,-1980.51,0.00059178,120]
[354806096,1740708652388,-937.10484352,0.00059256,15]
[354806098,1740708652398,-483.0,0.0005928,30]
[354806100,1740708652408,-190.29623272,0.0005928,30]
[354806102,1740708652419,-154.52,0.000593,60]
[354806104,1740708652430,-154.52,0.000593,60]
[354806106,1740708652441,-154.52,0.000593,60]
[354806108,1740708652453,-154.52,0.000593,60]
[354806111,1740708652465,-154.52,0.000593,60]
[354806113,1740708652476,-154.52,0.000593,60]
[354806115,1740708652487,-154.52,0.000593,60]
[354806117,1740708652499,-154.52,0.000593,60]
[354806119,1740708652509,-154.52,0.000593,60]
[354806121,1740708652519,-154.52,0.000593,60]
[354806123,1740708652529,-154.52,0.000593,60]
[354806125,1740708652540,-154.52,0.000593,60]
[354806127,1740708652551,-154.52,0.000593,60]
[354806129,1740708652561,-154.52,0.000593,60]
[354806131,1740708652571,-566.28,0.0005945,120]
[354806134,1740708652582,-500.0,0.0005945,120]
[354806136,1740708652591,-1040.93,0.0005945,120]
[354806138,1740708652602,-478.54456396,0.0005945,120]
[354806140,1740708652612,-1446.15,0.00059452,120]
[354806142,1740708652622,-663.2,0.00059452,120]
[354806144,1740708652633,-510.54,0.00059452,120]
[354806146,1740708652643,-500.0,0.00059452,120]
[354806148,1740708652653,-500.0,0.00059452,120]
[354806150,1740708652663,-579.62,0.00059452,120]
[354806152,1740708652674,-716.47,0.00059452,120]
[354806154,1740708652683,-1980.51,0.00059452,120]
[354806156,1740708652696,-566.28,0.00059724,120]
[354806159,1740708652706,-500.0,0.00059724,120]
[354806161,1740708652716,-1040.93,0.00059724,120]
[354806163,1740708652726,-1446.15,0.00059726,120]
[354806165,1740708652736,-663.2,0.00059726,120]
[354806167,1740708652748,-510.54,0.00059726,120]
[354806169,1740708652758,-500.0,0.00059726,120]
[354806171,1740708652768,-500.0,0.00059726,120]
[354806173,1740708652778,-579.62,0.00059726,120]
[354806175,1740708652787,-716.47,0.00059726,120]
[354806177,1740708652797,-1980.51,0.00059726,120]
[354806179,1740708652808,-1654.30962248,0.00059742,120]
[354806181,1740708652818,-483.0,0.00059873,30]
[354806183,1740708652829,-1571829.55562322,0.0005988,120]
[354806186,1740708652839,-937.10484352,0.0005997,15]
[354806188,1740708652849,-566.28,0.00059998,120]
[354806190,1740708652859,-500.0,0.00059998,120]
[354806192,1740708652869,-1040.93,0.00059998,120]
[354806194,1740708652883,-602.91092347,0.00059999,120]
[354806196,1740708652893,-1446.15,0.00059999,120]
[354806198,1740708652903,-663.2,0.00059999,120]
[354806200,1740708652913,-510.54,0.00059999,120]
[354806202,1740708652925,-500.0,0.00059999,120]
[354806204,1740708652935,-500.0,0.00059999,120]
[354806207,1740708652946,-579.62,0.00059999,120]
[354806209,1740708652956,-716.47,0.00059999,120]
[354806211,1740708652968,-1980.51,0.00059999,120]
[354806213,1740708652978,-20000.0,0.0006,2]
[354806215,1740708652988,-3976.25,0.0006,120]
[354806217,1740708652997,-354.0,0.0006,120]
[354806219,1740708653007,-566.28,0.00060272,120]
[354806221,1740708653016,-500.0,0.00060272,120]
[354806223,1740708653026,-1040.93,0.00060272,120]
[354806225,1740708653036,-1446.15,0.00060273,120]
[354806227,1740708653045,-663.2,0.00060273,120]
[354806229,1740708653055,-510.54,0.00060273,120]
[354806231,1740708653065,-500.0,0.00060273,120]
[354806234,1740708653075,-500.0,0.00060273,120]
[354806236,1740708653084,-579.62,0.00060273,120]
[354806238,1740708653094,-716.47,0.00060273,120]
[354806240,1740708653104,-1980.51,0.00060273,120]
[354806242,1740708653114,-1654.30962248,0.00060321,120]
[354806244,1740708653124,-270.82903,0.0006039,104]
[354806246,1740708653134,-483.0,0.00060466,30]
[354806248,1740708653143,-566.28,0.00060546,120]
[354806250,1740708653153,-500.0,0.00060546,120]
[354806252,1740708653163,-1040.93,0.00060546,120]
[354806254,1740708653173,-1446.15,0.00060547,120]
[354806256,1740708653183,-663.2,0.00060547,120]
[354806258,1740708653192,-510.54,0.00060547,120]
[354806260,1740708653203,-500.0,0.00060547,120]
[354806262,1740708653212,-500.0,0.00060547,120]
[354806265,1740708653222,-579.62,0.00060547,120]
[354806267,1740708653232,-716.47,0.00060547,120]
[354806269,1740708653242,-1980.51,0.00060547,120]
[354806271,1740708653253,-2006.5586,0.00060556,14]
[354806273,1740708653263,-150.0,0.00060576,30]
[354806275,1740708653274,-150.0,0.00060578,30]
[354806277,1740708653283,-150.0,0.00060585,30]
[354806279,1740708653293,-150.0,0.00060588,30]
[354806281,1740708653303,-150.0,0.00060594,30]
[354806283,1740708653313,-150.0,0.00060595,30]
[354806285,1740708653323,-150.0,0.000606,30]
[354806287,1740708653332,-150.0,0.00060606,30]
[354806289,1740708653342,-150.0,0.00060613,30]
[354806291,1740708653352,-150.0,0.00060616,30]
[354806293,1740708653362,-150.0,0.00060617,30]
[354806295,1740708653372,-150.0,0.00060619,30]
[354806298,1740708653382,-150.0,0.00060627,30]
[354806300,1740708653392,-150.0,0.00060635,30]
[354806302,1740708653402,-199.4904577,0.0006064,30]
[354806304,1740708653412,-150.0,0.00060645,30]
[354806306,1740708653422,-741.45558549,0.00060658,60]
[354806308,1740708653432,-150.0,0.0006067,30]
[354806310,1740708653442,-150.0,0.00060676,30]
[354806312,1740708653452,-150.0,0.00060678,30]
[354806314,1740708653462,-150.0,0.00060681,30]
[354806316,1740708653472,-150.0,0.00060684,30]
[354806318,1740708653482,-937.10484352,0.00060685,15]
[354806320,1740708653492,-150.0,0.00060695,30]
[354806322,1740708653503,-150.0,0.00060703,30]
[354806325,1740708653513,-150.0,0.00060707,30]
[354806327,1740708653523,-150.0,0.00060707,30]
[354806329,1740708653534,-150.0,0.00060721,30]
[354806331,1740708653544,-150.0,0.00060728,30]
[354806333,1740708653554,-150.0,0.00060738,30]
[354806335,1740708653564,-150.0,0.00060738,30]
[354806337,1740708653574,-150.0,0.00060738,30]
[354806339,1740708653584,-150.0,0.0006074,30]
[354806341,1740708653595,-150.0,0.00060742,30]
[354806344,1740708653605,-150.0,0.00060752,30]
[354806346,1740708653615,-150.0,0.00060755,30]
[354806348,1740708653626,-150.0,0.00060758,30]
[354806350,1740708653636,-150.0,0.0006076,30]
[354806352,1740708653647,-150.0,0.00060768,30]
[354806354,1740708653657,-150.0,0.0006077,30]
[354806356,1740708653667,-150.0,0.00060774,30]
[354806358,1740708653677,-150.0,0.00060774,30]
[354806360,1740708653687,-150.0,0.00060786,30]
[354806362,1740708653697,-150.0,0.00060787,30]
[354806363,1740708653707,-150.0,0.00060789,30]
[354806364,1740708653716,-150.0,0.00060792,30]
[354806365,1740708653727,-150.0,0.00060793,30]
[354806366,1740708653738,-150.0,0.00060793,30]
[354806367,1740708653750,-150.0,0.00060795,30]
[354806368,1740708653761,-150.0,0.00060798,30]
[354806369,1740708653772,-150.0,0.00060799,30]
[354806371,1740708653783,-150.0,0.000608,30]
[354806373,1740708653795,-150.0,0.00060803,30]
[354806375,1740708653806,-150.0,0.00060804,30]
[354806377,1740708653816,-150.0,0.00060805,30]
[354806379,1740708653828,-150.0,0.00060805,30]
[354806381,1740708653839,-150.0,0.00060808,30]
[354806383,1740708653850,-150.0,0.00060808,30]
[354806385,1740708653861,-150.0,0.00060815,30]
[354806388,1740708653872,-150.0,0.00060817,30]
[354806390,1740708653884,-566.28,0.0006082,120]
[354806411,1740708654084,-558.19967699,0.0006082,120]
[354806413,1740708654095,-1040.93,0.0006082,120]
[354806415,1740708654104,-1011.35639792,0.00060821,2]
[354806417,1740708654113,-1446.15,0.00060821,120]
[354806419,1740708654122,-663.2,0.00060821,120]
[354806421,1740708654132,-510.54,0.00060821,120]
[354806423,1740708654141,-500.0,0.00060821,120]
[354806425,1740708654150,-175.15553913,0.00060821,120]
[354806427,1740708654160,-579.62,0.00060821,120]
[354806429,1740708654169,-716.47,0.00060821,120]
[354806431,1740708654178,-1980.51,0.00060821,120]
[354806433,1740708654187,-150.0,0.00060826,30]
[354806435,1740708654196,-150.0,0.00060834,30]
[354806437,1740708654206,-150.0,0.00060837,30]
[354806439,1740708654215,-150.0,0.00060844,30]
[354806441,1740708654223,-1061.0,0.00060848,120]
[354806443,1740708654233,-206.0,0.0006086,30]
[354806445,1740708654242,-201.0,0.0006086,30]
[354806447,1740708654253,-1963.9551266,0.000609,30]
[354806449,1740708654262,-1654.30962248,0.000609,120]
[354806451,1740708654271,-172.7724654,0.00060916,83]
[354806453,1740708654281,-207.91552339,0.00060986,120]
[354806455,1740708654290,-150.0,0.00060986,120]
[354806457,1740708654299,-150.0,0.00060986,120]
[354806459,1740708654308,-150.90608598,0.00060986,120]
[354806461,1740708654318,-150.0,0.00060986,120]
[354806463,1740708654327,-2000.0,0.00061,2]
[354806465,1740708654336,-2000000.0,0.00061,120]
[354806467,1740708654348,-1100000.0,0.00061,120]
[354806469,1740708654357,-518.3767081,0.00061001,2]
[354806471,1740708654366,-207.91552339,0.00061043,120]
[354806473,1740708654376,-518.3767081,0.00061052,2]
[354806475,1740708654386,-483.0,0.00061058,30]
[354806477,1740708654395,-150.0,0.00061068,120]
[354806479,1740708654404,-566.28,0.00061094,120]
[354806481,1740708654414,-1040.93,0.00061094,120]
[354806483,1740708654423,-1446.21932308,0.00061095,120]
[354806485,1740708654433,-663.33811898,0.00061095,120]
[354806487,1740708654442,-510.59778215,0.00061095,120]
[354806489,1740708654452,-451.38165538,0.00061095,120]
[354806491,1740708654462,-579.68621502,0.00061095,120]
[354806493,1740708654471,-716.66541223,0.00061095,120]
[354806495,1740708654480,-1980.51184581,0.00061095,120]
[354806497,1740708654490,-207.91552339,0.000611,120]
[354806499,1740708654500,-518.3767081,0.00061108,2]
[354806501,1740708654510,-150.0,0.0006112,120]
[354806503,1740708654519,-150.0,0.00061149,120]
[354806505,1740708654528,-207.91552339,0.00061156,120]
[354806507,1740708654537,-151.0,0.00061178,120]
[354806509,1740708654546,-207.91552339,0.00061213,120]
[354806511,1740708654555,-150.0,0.0006123,120]
[354806513,1740708654565,-150.0,0.00061254,120]
[354806515,1740708654574,-207.91552339,0.0006127,120]
[354806517,1740708654583,-150.0,0.00061312,120]
[354806519,1740708654593,-151.0,0.00061315,120]
[354806522,1740708654602,-518.3767081,0.00061326,2]
[354806523,1740708654611,-518.3767081,0.00061326,2]
[354806525,1740708654621,-207.91552339,0.00061327,120]
[354806527,1740708654630,-3343.32,0.00061334,120]
[354806530,1740708654640,-518.3767081,0.00061358,2]
[354806531,1740708654649,-150.0,0.00061361,120]
[354806534,1740708654659,-566.28748613,0.00061368,120]
[354806536,1740708654670,-1041.07568364,0.00061368,120]
[354806538,1740708654679,-207.91552339,0.00061383,120]
[354806540,1740708654690,-150.0,0.00061387,120]
[354806542,1740708654699,-150.0,0.00061393,120]
[354806544,1740708654709,-153.0,0.00061397,120]
[354806545,1740708654718,-153.0,0.00061397,120]
[354806547,1740708654727,-153.0,0.00061397,120]
[354806550,1740708654737,-153.0,0.00061397,120]
[354806551,1740708654748,-153.0,0.00061397,120]
[354806554,1740708654758,-153.0,0.00061397,120]
[354806556,1740708654769,-153.0,0.00061397,120]
[354806557,1740708654779,-153.0,0.00061397,120]
[354806559,1740708654788,-153.0,0.00061397,120]
[354806561,1740708654798,-153.0,0.00061397,120]
[354806564,1740708654807,-153.0,0.00061397,120]
[354806565,1740708654816,-153.0,0.00061397,120]
[354806568,1740708654825,-1963.95512658,0.000614,30]
[354806570,1740708654836,-937.10484352,0.000614,15]
[354806572,1740708654846,-207.91552339,0.0006144,120]
[354806574,1740708654857,-150.0,0.00061474,120]
[354806575,1740708654867,-207.91552339,0.00061497,120]
[354806577,1740708654881,-2819.32306165,0.000615,120]
[354806579,1740708654891,-526302.59593511,0.000615,120]
[354806587,1740708654957,-325709.15147592,0.000615,120]
[354806589,1740708654970,-379.9422459,0.000615,120]
[354806592,1740708654985,-695.60721319,0.00055068,120]
[354806594,1740708654996,-176.51278681,0.00055068,120]
[354806596,1740708655009,-41133.74761316,0.000615,120]
[354806608,1740708655149,-508.20154104,0.00055067,120]
[354806609,1740708655158,-571.1,0.00055067,120]
[354806610,1740708655167,-500.0,0.00055067,120]
[354806611,1740708655176,-500.0,0.00055067,120]
[354806612,1740708655185,-601.03895627,0.00055142,27]
[354806613,1740708655195,-872.12,0.00055342,120]
[354806614,1740708655205,-500.0,0.00055342,120]
[354806615,1740708655214,-872.12,0.00055616,120]
[354806616,1740708655223,-500.0,0.00055616,120]
[354806617,1740708655232,-872.12,0.0005589,120]
[354806618,1740708655241,-500.0,0.0005589,120]
[354806619,1740708655252,-872.12,0.00056164,120]
[354806620,1740708655261,-54.37440269,0.00056164,120]
[354806621,1740708655280,-500.0,0.00054794,120]
[354806622,1740708655291,-373.50559731,0.00056164,120]
[354806623,1740708655300,-872.12,0.00056438,120]
[354806624,1740708655310,-872.12,0.00056712,120]
[354806625,1740708655319,-872.12,0.00056986,120]
[354806626,1740708655328,-886.91701801,0.00057055,15]
[354806627,1740708655337,-872.12,0.0005726,120]
[354806628,1740708655347,-872.12,0.00057534,120]
[354806629,1740708655356,-153.0,0.00061397,120]
[354806630,1740708655366,-78223.07359827,0.000615,120]
[354806631,1740708656130,-28251.48913164,0.000615,120]
[354806632,1740708656140,-1000.0,0.000615,120]
[354806633,1740708656149,-278612.17116375,0.000615,120]
[354806634,1740708656164,-153.0,0.00061397,120]
[354806635,1740708656174,-20936.16167877,0.000615,120]
[354806636,1740708656439,-1000.0,0.000463,2]
[354806637,1740708656449,-1000.0,0.000463,2]
[354806638,1740708656458,-1000.0,0.000463,2]
[354806639,1740708656467,-1000.0,0.000463,2]
[354806640,1740708656477,-679.0,0.000509,120]
[354806641,1740708656487,-5550.0,0.000519,120]
[354806642,1740708656496,-500.0,0.00054794,120]
[354806643,1740708656506,-500.0,0.00054794,120]
[354806644,1740708656516,-500.0,0.00055067,120]
[354806645,1740708656530,-500.0,0.00055067,120]
[354806646,1740708656539,-500.0,0.00055068,120]
[354806647,1740708656549,-500.0,0.00055068,120]
[354806648,1740708656559,-500.0,0.00055341,120]
[354806649,1740708656568,-500.0,0.00055342,120]
[354806650,1740708656578,-435.94,0.00055615,120]
[354806651,1740708656587,-500.0,0.00055616,120]
[354806652,1740708656597,-500.0,0.0005589,120]
[354806653,1740708656606,-500.0,0.00056164,120]
[354806654,1740708656615,-500.0,0.00056438,120]
[354806655,1740708656625,-493.08,0.00056712,120]
[354806656,1740708656634,-872.12,0.00057808,120]
[354806657,1740708656762,-872.12,0.00058082,120]
[354806658,1740708656773,-872.12,0.00058356,120]
[354806659,1740708656783,-872.12,0.0005863,120]
[354806660,1740708656794,-872.12,0.00058904,120]
[354806661,1740708656803,-872.12,0.00059178,120]
[354806662,1740708656813,-872.12,0.00059452,120]
[354806663,1740708656822,-872.12,0.00059726,120]
[354806664,1740708656832,-1897.0,0.0005988,25]
[354806665,1740708656841,-872.12,0.00059999,120]
[354806666,1740708656850,-872.12,0.00060273,120]
[354806667,1740708656860,-872.12,0.00060547,120]
[354806668,1740708656869,-152703.84989385,0.000615,120]
[354806669,1740708656885,-7283.53737283,0.000615,120]
[354806670,1740708656898,-384.50318454,0.000615,120]
[354806671,1740708656909,-824.2,0.000615,120]
[354806672,1740708656920,-3039.06308646,0.000615,120]
[354806673,1740708656933,-4427.85,0.000615,120]
[354806674,1740708656948,-872.12,0.00060821,120]
[354806675,1740708656959,-39994.22,0.000615,120]
[354806676,1740708656970,-459.58986104,0.000615,120]
[354806677,1740708656981,-6062.64759531,0.000615,120]
[354806678,1740708657458,-1980.32586293,0.000615,120]
[354806679,1740708657469,-9007.32843651,0.000615,120]
[354806680,1740708657480,-525.77951585,0.000615,120]
[354806681,1740708657491,-8183.8757,0.000615,120]
[354806682,1740708657503,-5502.61,0.000615,120]
[354806683,1740708657515,-500.54814297,0.000615,120]
[354806684,1740708657533,-276.04800529,0.000463,2]
[354806685,1740708657544,-533.59496,0.000463,2]
[354806687,1740708736644,500.0,0.00023,30]
[354806688,1740708736999,521.28595847,0.00023,30]
[354806689,1740708739992,511.51666559,0.00023,30]
[354806694,1740709035147,500.0,0.00023,30]
[354806705,1740709511305,13187.85590242,0.00029929,30]
[354806706,1740709511496,10561.4907583,0.00029929,30]
[354806707,1740709514963,129450.83754452,0.00029929,30]
[354806708,1740709518107,26908.40588003,0.00029929,30]
[354806709,1740709518569,5871.51440473,0.00029929,30]
[354806710,1740709522118,540.97367182,0.00029929,120]
[354806714,1740709542812,6734.3884775,0.00029929,120]
[354806715,1740709543668,8370.33644183,0.00029929,30]
[354806716,1740709572891,32527.30402206,0.00029929,30]
[354806718,1740709603967,28807.37649812,0.00029929,30]
[354806737,1740709655568,14970.51325395,0.00029929,30]
[354806738,1740709663441,50000.0,0.00029929,30]
[354806739,1740709666969,35308.93234543,0.00029929,30]
[354806740,1740709669391,12941.6822796,0.00029929,30]
[354806742,1740709679364,30587.97094011,0.00029929,30]
[354806745,1740709688372,12869.27941595,0.00029929,30]
[354806746,1740709689518,20454.96657321,0.00029929,30]
[354806747,1740709697904,1000.0,0.000135,2]
[354806748,1740709708096,1407.14927684,0.000136,2]
[354806749,1740709709849,360.31570903,0.00029929,120]
[354806750,1740709711938,27338.34202082,0.00029929,30]
[354806751,1740709712235,37371.68642977,0.00029929,30]
[354806753,1740709712758,6674.07177279,0.00029929,30]
[354806754,1740709713453,33447.75488077,0.00029929,30]
[354806755,1740709714606,25990.47122595,0.00029929,60]
[354806756,1740709715629,874651.66225785,0.00029929,30]
[354806766,1740709766899,-896.23627101,0.00014899,2]
[354806767,1740709766922,-753.49410047,0.000149,2]
[354806768,1740709766945,-3775.91864915,0.000149,2]